bitfinex/quotes_ETHUSD_20220201
["timestamp","ask_amount","ask_price","bid_price","bid_amount"]
[1643709644378,0.48266,2733.8,2732.8,1.21473]
[1643709644379,2.27131963,2733.7,2732.8,1.21473]
[1643709644585,2.19023243,2733.7,2732.8,1.21473]
[1643709644780,2.19023243,2733.7,2732.8,0.91473]
[1643709644979,0.18266,2733.6,2732.8,0.91473]
[1643709645180,0.18266,2733.6,2733.1,1.59032005]
[1643709645411,0.18266,2733.6,2733.1,0.91463]
[1643709645612,0.18266,2733.6,2733.0,0.01223896]
[1643709645820,0.18266,2733.6,2732.9,3.65852]
[1643709646222,0.18266,2733.6,2733.3,0.39054566]
[1643709649362,3.47789994,2734.7,2733.3,0.39054566]
[1643709649363,0.18266,2734.2,2733.3,0.39054566]
[1643709649756,0.18266,2734.2,2733.3,2.21983566]
[1643709650061,0.18163439,2734.2,2733.3,2.21983566]
[1643709650256,1.24685348,2734.1,2733.3,1.82929]
[1643709650458,0.18163439,2734.0,2733.3,1.82929]
[1643709650860,0.18163439,2734.0,2733.3,2.74399]
[1643709651656,0.18163439,2734.0,2733.3,3.06100286]
[1643709651858,0.18163439,2734.0,2733.3,2.14630286]
[1643709652059,0.36453439,2734.0,2733.3,2.14630286]
[1643709652260,1.36453439,2734.0,2733.3,2.14630286]
[1643709652904,0.36453439,2734.0,2733.3,2.14630286]
[1643709653108,0.18163439,2734.0,2733.3,2.14630286]
[1643709653608,0.18163439,2734.2,2733.8,0.36855616]
[1643709653811,0.18163439,2734.4,2733.5,0.91466]
[1643709654310,0.1131944,2734.3,2733.5,0.91466]
[1643709654509,0.18163439,2734.4,2733.5,0.91466]
[1643709654709,0.69170683,2734.3,2733.5,0.91466]
[1643709655111,0.34927043,2733.9,2733.6,0.4005245]
[1643709655316,0.18163439,2734.2,2733.6,0.4005245]
[1643709655512,3.15857017,2734.5,2733.6,0.7005245]
[1643709655513,1.18163439,2734.4,2733.6,0.7005245]
[1643709655713,1.0,2734.4,2733.6,0.7005245]
[1643709656115,3.23677423,2734.5,2733.6,0.7005245]
[1643709656316,0.44742302,2734.4,2734.1,0.38286739]
[1643709656661,7.3146,2734.3,2734.1,0.38286739]
[1643709657866,7.3146,2734.3,2734.2,0.7026433]
[1643709658161,7.3146,2734.3,2734.1,0.38286739]
[1643709658560,7.3146,2734.3,2733.9,1.82896]
[1643709658863,7.3146,2734.3,2734.0,0.9065905]
[1643709659066,7.3146,2734.3,2734.1,1.82857]
[1643709661329,7.3146,2734.3,2733.8,1.82867]
[1643709661731,7.3146,2734.3,2733.8,2.74312]
[1643709662034,7.3146,2734.3,2733.7,1.82891]
[1643709662035,1.074,2734.2,2733.7,1.82891]
[1643709662233,1.074,2734.0,2733.4,1.82902]
[1643709662432,1.074,2733.5,2733.1,0.91468]
[1643709663047,0.1829,2734.7,2733.4,0.01220334]
[1643709663242,2.16872298,2735.1,2734.5,0.01268034]
[1643709663535,0.27639994,2735.2,2734.5,0.01268034]
[1643709663736,0.1828,2736.4,2735.0,1.01231405]
[1643709663938,0.66248629,2736.2,2736.1,0.01263937]
[1643709664169,0.80419072,2737.0,2736.1,0.9305385]
[1643709664170,0.32575131,2736.3,2736.1,0.9305385]
[1643709664370,0.4346,2737.3,2736.2,3.877]
[1643709664674,1.54300056,2737.2,2736.4,1.82694]
[1643709664870,1.72560056,2737.2,2736.4,2.65972668]
[1643709665094,1.54300056,2737.1,2736.4,2.65972668]
[1643709665370,0.41964531,2736.9,2736.4,2.65972668]
[1643709665769,0.41964531,2736.9,2736.4,4.008763]
[1643709665972,0.41964531,2736.9,2736.4,3.57319668]
[1643709666172,0.41964531,2736.9,2736.6,0.91352]
[1643709666471,0.41964531,2736.9,2736.5,2.00816465]
[1643709668317,0.41964531,2736.9,2736.5,1.82691]
[1643709669317,0.1827,2736.8,2736.0,3.06198997]
[1643709669512,0.43743341,2736.1,2736.0,3.06198997]
[1643709669711,0.1827,2736.8,2736.0,3.06198997]
[1643709669916,0.1827,2736.9,2736.0,3.06198997]
[1643709670212,0.74229505,2736.7,2736.0,3.06198997]
[1643709670713,0.44152875,2736.1,2736.0,3.06198997]
[1643709670916,0.1827,2736.6,2736.0,3.06198997]
[1643709671114,0.74229505,2736.7,2736.0,2.87928997]
[1643709671674,0.76330962,2736.7,2736.0,2.87928997]
[1643709671873,0.40590173,2736.4,2736.0,3.2398585]
[1643709672069,0.40590173,2736.4,2736.0,4.0329209]
[1643709672269,0.1827,2736.6,2736.1,0.91365]
[1643709672469,0.76330962,2736.7,2736.1,0.91365]
[1643709672470,0.02101457,2736.7,2736.1,0.91365]
[1643709672674,0.02101457,2736.7,2736.2,1.82719]
[1643709673377,0.02101457,2736.7,2736.6,0.39046964]
[1643709673582,0.02101457,2736.7,2736.5,0.91353]
[1643709674178,0.02101457,2736.7,2736.5,1.44053]
[1643709674779,0.02101457,2736.7,2736.5,1.79422416]
[1643709674980,0.02101457,2736.7,2736.5,2.70777416]
[1643709675402,0.02101457,2736.7,2736.5,2.35408]
[1643709675608,0.02101457,2736.7,2736.2,1.82719]
[1643709676412,1.05081837,2736.5,2736.2,1.82719]
[1643709676607,0.02101457,2736.7,2736.2,2.74084]
[1643709676808,3.56272387,2737.7,2736.2,2.74084]
[1643709677014,0.99999999,2737.4,2736.2,1.82719]
[1643709677319,1.29999999,2737.2,2736.0,0.91385]
[1643709677613,3.68493846,2737.1,2736.0,0.91385]
[1643709678015,1.13975943,2736.3,2736.0,0.91385]
[1643709678414,0.35666706,2736.3,2736.0,0.91385]
[1643709678614,1.0,2736.8,2736.0,0.91385]
[1643709678819,0.1827,2736.7,2736.0,0.91385]
[1643709679258,0.1827,2736.7,2736.0,1.21385]
[1643709679463,0.7908631,2736.3,2736.0,1.21385]
[1643709679664,1.18218503,2736.3,2736.0,1.21385]
[1643709679861,0.1827,2737.0,2736.0,1.21385]
[1643709680060,0.1827,2737.2,2736.0,1.21385]
[1643709680261,0.1131944,2736.9,2736.0,1.21385]
[1643709680659,0.1827,2737.2,2736.0,1.21385]
[1643709680860,1.2845963,2736.6,2736.0,1.21385]
[1643709681664,0.82413115,2736.1,2736.0,0.91385]
[1643709681862,0.82413115,2736.1,2735.7,0.13819997]
[1643709682067,0.82413115,2736.1,2735.0,1.82794]
[1643709682068,1.12413115,2736.1,2735.2,0.1827]
[1643709682266,2.961355,2736.0,2734.7,0.1827]
[1643709682464,2.961355,2736.0,2734.6,0.1827]
[1643709682670,0.85616272,2735.1,2734.3,1.28169345]
[1643709682911,0.0065921,2735.1,2734.5,0.91424]
[1643709683117,2.2581735,2735.5,2734.5,0.91424]
[1643709683314,2.2581735,2735.5,2734.3,0.1827]
[1643709683315,0.1892185,2735.5,2734.3,0.1827]
[1643709683516,0.1131944,2735.4,2734.3,0.1827]
[1643709683718,0.1131944,2735.4,2734.3,1.397]
[1643709683920,0.0065185,2735.5,2734.5,1.8283912]
[1643709684123,0.43771763,2735.5,2735.1,0.41590336]
[1643709684318,0.43119913,2735.5,2734.8,0.93824097]
[1643709684516,0.43119913,2735.5,2734.6,2.01082]
[1643709685016,0.43119913,2735.5,2734.6,0.1827]
[1643709685415,0.4041155,2735.0,2734.7,0.91421]
[1643709686114,0.77714914,2735.6,2734.7,0.91421]
[1643709686315,0.77714914,2735.6,2734.8,0.3]
[1643709686316,1.77714914,2735.6,2734.8,0.3]
[1643709686757,1.77714914,2735.6,2734.9,0.91415]
[1643709686954,1.77714914,2735.6,2734.9,3.6564891]
[1643709687158,0.77714914,2735.6,2735.0,0.91408]
[1643709687356,0.77714914,2735.6,2735.0,1.21408]
[1643709687357,0.67714914,2735.6,2735.0,1.21408]
[1643709687758,0.67714914,2735.6,2735.0,1.39678]
[1643709688361,6.5372,2736.1,2735.0,1.39678]
[1643709688362,0.1827,2736.1,2735.0,2.3108]
[1643709688564,2.46006721,2736.1,2735.2,0.91401]
[1643709688761,0.34344046,2735.5,2735.3,0.91397]
[1643709688961,1.0,2735.8,2735.3,0.91397]
[1643709689368,0.77214216,2735.6,2735.3,0.91397]
[1643709689761,1.0,2735.8,2735.3,0.91397]
[1643709690615,0.43379537,2735.6,2735.3,0.91397]
[1643709691124,0.43379537,2735.6,2735.3,1.21397]
[1643709691521,0.28379537,2735.6,2735.3,1.21397]
[1643709691925,0.28379537,2735.6,2735.3,0.91397]
[1643709692123,0.28379537,2735.6,2735.2,2.01064]
[1643709692322,0.28379537,2735.6,2735.2,1.82794]
[1643709692526,1.0,2735.8,2735.2,1.82794]
[1643709693626,0.34653842,2735.4,2735.2,1.82794]
[1643709694257,0.09653842,2735.4,2735.0,3.65603]
[1643709694858,0.09653842,2735.4,2735.1,0.3]
[1643709695062,0.09653842,2735.4,2735.0,3.65603]
[1643709695357,0.09653842,2735.4,2735.1,0.41755234]
[1643709695759,0.09653842,2735.4,2735.1,0.3]
[1643709695960,1.92311876,2735.8,2735.1,0.3]
[1643709696659,1.92311876,2735.8,2735.3,0.91403]
[1643709696864,0.43560192,2735.6,2735.3,1.25644633]
[1643709697068,0.1827,2736.1,2735.3,3.08423633]
[1643709697263,14.0927,2736.6,2735.4,0.7097]
[1643709697463,2.24291858,2736.5,2735.4,0.7097]
[1643709697916,7.74787461,2735.9,2735.6,0.80615301]
[1643709698116,7.3118,2735.9,2735.7,1.82756]
[1643709698318,7.3118,2735.9,2735.8,0.1827]
[1643709698722,7.3118,2735.9,2735.8,3.927]
[1643709699126,7.3118,2735.9,2735.8,4.27877905]
[1643709699425,7.3118,2735.9,2735.8,4.57877905]
[1643709700025,1.1719,2737.1,2736.1,0.91363]
[1643709700232,0.00291716,2737.8,2736.4,0.91935518]
[1643709700432,0.00291716,2737.8,2737.3,0.43414332]
[1643709700433,0.41467655,2737.6,2737.3,0.43414332]
[1643709700629,0.41467655,2737.6,2736.6,0.31239964]
[1643709700830,0.41467655,2737.6,2736.6,0.61239964]
[1643709701029,0.41467655,2737.6,2736.7,0.527]
[1643709701228,0.41467655,2737.6,2737.1,0.70906751]
[1643709701428,0.41467655,2737.6,2737.2,1.8265517]
[1643709701677,0.41467655,2737.6,2737.2,2.22491355]
[1643709701858,5.028803,2737.9,2737.2,2.52491355]
[1643709702058,2.42551858,2738.4,2737.2,2.52491355]
[1643709702264,1.54225803,2738.3,2737.5,0.3]
[1643709702458,0.1826,2738.2,2737.5,0.3]
[1643709702658,1.54225803,2738.1,2737.5,0.3]
[1643709703063,1.29601802,2738.2,2737.8,0.33634035]
[1643709703266,1.72479398,2738.1,2737.8,0.33634035]
[1643709703463,1.72479398,2738.1,2737.7,0.9132]
[1643709703464,0.1826,2738.1,2737.7,0.9132]
[1643709703664,1.0,2738.3,2737.7,0.9132]
[1643709703665,0.1826,2738.2,2737.7,0.9132]
[1643709703863,1.54215517,2738.1,2737.7,0.9132]
[1643709704266,0.1826,2738.2,2737.7,0.9132]
[1643709704664,0.55459282,2738.2,2737.9,0.35544686]
[1643709704969,0.1826,2738.2,2737.9,1.27646552]
[1643709705409,0.1826,2738.8,2737.9,1.27646552]
[1643709705610,1.54205751,2738.7,2737.9,1.27646552]
[1643709705810,0.44017772,2738.4,2737.9,1.27646552]
[1643709706010,0.1826,2738.3,2737.9,1.27646552]
[1643709706210,0.1826,2738.6,2737.9,1.27646552]
[1643709706411,0.1131944,2738.4,2737.9,1.27646552]
[1643709706609,3.35424897,2738.7,2737.9,0.35544686]
[1643709706610,1.72468953,2738.3,2737.9,0.35544686]
[1643709706812,1.54208953,2738.2,2737.9,0.35544686]
[1643709707011,0.36799371,2738.4,2737.9,0.35544686]
[1643709707211,1.72472792,2738.3,2737.9,0.35544686]
[1643709707412,0.1826,2738.3,2737.9,0.35544686]
[1643709707625,0.1826,2738.5,2737.9,0.35544686]
[1643709707813,1.0,2738.7,2737.9,0.35544686]
[1643709707814,1.54208665,2738.4,2737.9,1.26589613]
[1643709708013,1.72468665,2738.3,2737.9,0.35544686]
[1643709708211,2.31912383,2738.6,2737.9,0.35544686]
[1643709708212,1.1824,2738.5,2737.9,0.35544686]
[1643709708514,3.98074357,2738.4,2737.7,0.9132]
[1643709708714,1.54213201,2738.3,2737.5,0.3]
[1643709708916,2.46923051,2738.2,2737.5,0.3]
[1643709709164,1.0,2738.3,2737.5,0.97845259]
[1643709709368,4.23953123,2738.2,2737.9,0.341769]
[1643709709672,4.23953123,2738.2,2737.5,0.97845259]
[1643709709673,0.39607535,2738.2,2737.5,0.97845259]
[1643709709868,1.0,2738.1,2737.5,0.97845259]
[1643709710069,0.39607535,2738.2,2737.5,0.97845259]
[1643709710469,0.1826,2738.4,2738.0,0.73754625]
[1643709710870,0.1826,2738.4,2737.6,0.91319]
[1643709711269,2.45347128,2738.7,2737.6,0.91319]
[1643709711473,1.54205238,2738.6,2737.6,0.91319]
[1643709711668,0.1826,2738.5,2737.6,0.91319]
[1643709712069,1.54205238,2738.4,2738.1,0.39600331]
[1643709712269,1.54205238,2738.4,2737.6,0.91319]
[1643709712670,0.58771938,2738.5,2737.4,2.535986]
[1643709712921,1.0,2738.4,2737.4,2.535986]
[1643709713112,7.44,2738.4,2737.4,2.535986]
[1643709713310,8.44,2738.4,2737.8,1.21724379]
[1643709713711,8.44,2738.4,2737.8,1.51724379]
[1643709714013,7.44,2738.4,2737.8,1.51724379]
[1643709714220,1.0,2738.3,2737.8,1.51724379]
[1643709714415,7.44,2738.4,2737.8,1.51724379]
[1643709714818,0.40511938,2738.5,2737.8,0.06867462]
[1643709715215,0.40511938,2738.5,2737.5,5.0924142]
[1643709715425,0.40511938,2738.5,2737.3,0.1826]
[1643709715426,0.01296084,2738.3,2737.3,0.1826]
[1643709715717,1.01823434,2738.3,2737.3,0.1826]
[1643709715917,0.88562231,2738.0,2737.3,0.1826]
[1643709716119,2.27087128,2737.9,2737.3,0.1826]
[1643709716317,0.88562231,2738.0,2737.3,0.1826]
[1643709716318,0.43101056,2737.8,2737.3,0.1826]
[1643709716687,4.62960379,2737.8,2737.3,0.1826]
[1643709717082,1.0,2737.7,2737.3,0.1826]
[1643709718387,4.03182688,2737.7,2736.8,4.3845]
[1643709718588,1.7509674,2737.7,2736.8,0.4826]
[1643709718788,1.7509674,2737.7,2736.8,0.1826]
[1643709719588,0.7509674,2737.7,2737.1,0.34097628]
[1643709719789,1.7509674,2737.7,2736.8,0.1826]
[1643709719988,0.7509674,2737.7,2736.8,0.1826]
[1643709720189,1.7509674,2737.7,2736.8,0.1826]
[1643709720414,0.7509674,2737.7,2736.8,0.4826]
[1643709720620,0.7509674,2737.7,2736.8,0.1826]
[1643709720915,0.42878733,2737.1,2736.7,1.85777196]
[1643709721121,1.7509674,2737.7,2736.8,0.3]
[1643709721320,4.01332162,2737.7,2736.9,0.1826]
[1643709721520,4.01332162,2737.7,2736.4,0.1826]
[1643709721521,0.1826,2737.6,2736.4,0.1826]
[1643709721725,2.54265566,2737.5,2736.0,0.1826]
[1643709721922,2.54265566,2737.5,2735.6,0.9845]
[1643709721923,0.01209314,2737.0,2735.6,0.9845]
[1643709722124,0.99999999,2736.6,2735.6,0.9845]
[1643709722324,0.71244867,2735.7,2735.6,0.9845]
[1643709722523,0.00575737,2735.6,2734.7,0.1827]
[1643709723521,0.42793358,2734.8,2734.7,0.1827]
[1643709723926,0.00575737,2735.6,2734.7,0.1827]
[1643709725165,0.33270448,2735.0,2734.7,0.1827]
[1643709726266,0.71244867,2735.7,2734.7,0.1827]
[1643709726868,0.71244867,2735.7,2734.7,1.39672]
[1643709727069,0.71244867,2735.7,2734.8,0.92777819]
[1643709727268,0.40920111,2735.2,2734.9,0.1827]
[1643709727465,0.40920111,2735.2,2734.9,0.57279777]
[1643709727667,0.40920111,2735.2,2734.9,0.1827]
[1643709728504,0.71244867,2735.7,2734.9,0.1827]
[1643709729710,0.71244867,2735.7,2735.0,0.40519769]
[1643709729711,0.43246429,2735.4,2735.0,0.40519769]
[1643709730511,0.1827,2736.2,2735.0,0.40519769]
[1643709730713,0.1827,2736.4,2735.1,2.793701]
[1643709730918,7.3097,2736.5,2735.2,1.0967084]
[1643709731215,7.3097,2736.5,2735.3,0.527]
[1643709731415,7.3097,2736.5,2735.3,2.78074708]
[1643709731662,0.41349774,2736.0,2735.3,2.35443]
[1643709731860,0.41349774,2736.0,2735.5,0.3]
[1643709732263,0.41349774,2736.0,2734.9,9.73512]
[1643709732559,0.34958309,2735.2,2734.9,2.01042]
[1643709732761,0.1827,2736.0,2734.9,1.82772]
[1643709733159,0.1827,2736.3,2734.9,1.82772]
[1643709733766,0.79418526,2735.7,2734.9,1.82772]
[1643709733966,1.23814974,2735.7,2735.3,0.3706334]
[1643709734169,0.44396448,2735.7,2735.3,0.3706334]
[1643709734967,0.1827,2736.3,2735.3,0.3706334]
[1643709735168,0.90716492,2735.9,2735.3,0.3706334]
[1643709735410,0.90716492,2735.9,2734.9,2.12772]
[1643709735611,0.90578987,2735.9,2735.1,0.3]
[1643709735811,0.90578987,2735.9,2734.9,2.12772]
[1643709737110,0.32913789,2735.7,2735.3,0.40171264]
[1643709737312,0.90578987,2735.9,2735.3,0.40171264]
[1643709738012,0.90578987,2735.9,2734.9,2.31042]
[1643709738211,0.40578987,2735.9,2734.9,2.31042]
[1643709739015,0.1827,2736.3,2735.2,0.0124352]
[1643709739261,0.35557919,2736.1,2735.7,0.35804304]
[1643709739467,0.1827,2736.3,2735.7,0.35804304]
[1643709739665,1.3497,2736.8,2735.7,0.35804304]
[1643709739863,0.1827,2736.8,2735.7,0.35804304]
[1643709740064,0.77771317,2736.7,2735.9,0.83720039]
[1643709740262,0.77771317,2736.7,2735.9,1.13720039]
[1643709740964,0.34289635,2736.3,2735.7,0.35804304]
[1643709741168,0.77771317,2736.7,2735.7,0.35804304]
[1643709741773,0.77771317,2736.7,2736.0,0.9022434]
[1643709742166,0.40991105,2736.4,2736.0,0.3]
[1643709742571,0.40991105,2736.4,2735.7,0.35804304]
[1643709743012,0.1827,2736.3,2735.4,11.4212]
[1643709743213,0.1827,2736.3,2735.1,3.8379]
[1643709743214,0.83663325,2735.6,2735.1,3.3109]
[1643709743417,0.83663325,2735.6,2735.0,3.7578]
[1643709743721,0.83663325,2735.6,2734.9,8.0997]
[1643709743917,0.83663325,2735.6,2734.6,0.01270098]
[1643709744115,0.38989844,2735.2,2734.6,0.01270098]
[1643709744318,0.38989844,2735.2,2734.6,1.82793]
[1643709744517,0.38989844,2735.2,2734.4,0.1827]
[1643709744518,0.689867,2734.8,2734.4,0.1827]
[1643709744718,0.38989844,2735.2,2734.4,0.1827]
[1643709745718,1.2616926,2735.2,2734.4,0.1827]
[1643709745917,1.2616926,2735.2,2734.7,0.37324944]
[1643709747559,0.1827,2735.7,2734.7,0.37324944]
[1643709747762,0.1827,2735.8,2734.7,0.37324944]
[1643709748560,0.39396194,2735.4,2734.7,0.90024944]
[1643709748765,0.1827,2736.0,2734.7,0.90024944]
[1643709749165,2.43019398,2736.2,2734.8,0.1827]
[1643709749365,2.43019398,2736.2,2734.9,0.527]
[1643709749963,0.94164028,2735.6,2735.3,0.41196343]
[1643709750609,0.94164028,2735.6,2735.1,0.527]
[1643709751207,0.1827,2736.0,2735.1,1.44091]
[1643709751712,1.3,2736.2,2735.1,1.44091]
[1643709751713,0.39011325,2735.6,2735.2,0.40415429]
[1643709751912,0.1827,2736.1,2735.2,0.40415429]
[1643709752312,0.94794949,2735.9,2735.2,1.28083767]
[1643709752513,1.24794949,2735.9,2734.7,5.2482]
[1643709752714,0.1827,2735.8,2734.7,5.0655]
[1643709753315,0.1827,2735.8,2734.8,0.527]
[1643709753515,0.34266737,2735.2,2734.8,0.88222704]
[1643709753715,0.88317273,2735.3,2734.8,0.88222704]
[1643709753916,2.43019398,2736.0,2734.8,0.88222704]
[1643709754152,0.1827,2736.0,2734.8,0.88222704]
[1643709754361,0.1827,2736.0,2734.8,1.44101]
[1643709754560,2.43019398,2736.0,2734.8,1.44101]
[1643709754757,0.1827,2736.0,2734.8,1.44101]
[1643709755158,0.83735944,2735.4,2734.8,1.44101]
[1643709755362,0.41382798,2735.0,2734.8,1.44101]
[1643709755958,0.83735944,2735.4,2734.8,1.44101]
[1643709756868,0.83735944,2735.4,2734.8,0.91401]
[1643709757069,0.83735944,2735.4,2734.6,0.19509278]
[1643709757262,0.83735944,2735.4,2734.6,0.1827]
[1643709757919,0.39236956,2735.2,2734.8,1.3041165]
[1643709758117,0.39236956,2735.2,2734.8,0.91403]
[1643709758319,0.39236956,2735.2,2734.6,0.1827]
[1643709758517,2.34362505,2735.1,2734.3,4.8231]
[1643709758719,2.27825678,2735.1,2734.2,0.1827]
[1643709758917,2.34160087,2735.1,2734.2,0.1827]
[1643709759124,0.33577415,2734.6,2734.2,0.1827]
[1643709759318,0.33577415,2734.6,2734.1,1.1732]
[1643709759522,0.33577415,2734.6,2733.9,0.82137295]
[1643709759718,0.33577415,2734.6,2733.7,3.9402]
[1643709759919,0.76152149,2734.7,2733.7,4.85449]
[1643709760120,0.76152149,2734.7,2733.9,1.82844]
[1643709760721,0.76152149,2734.7,2733.7,3.7575]
[1643709760722,0.1827,2734.6,2733.7,3.7575]
[1643709760923,0.76152149,2734.7,2734.0,0.37888745]
[1643709760924,0.34854782,2734.3,2734.0,0.37888745]
[1643709761120,0.76152149,2734.7,2734.0,0.37888745]
[1643709761121,1.06152149,2734.7,2734.0,0.37888745]
[1643709761323,2.43019398,2734.6,2733.7,3.7575]
[1643709761521,1.06152149,2734.7,2733.5,7.8406]
[1643709761769,1.0,2734.6,2733.5,0.1827]
[1643709761973,1.06152149,2734.7,2733.5,0.1827]
[1643709762176,4.4,2734.4,2732.8,0.62158955]
[1643709762374,0.01990688,2733.8,2733.4,0.146295]
[1643709762570,0.01990688,2733.8,2732.6,0.00129244]
[1643709762770,0.1829,2733.7,2732.6,0.00129244]
[1643709762971,0.92590635,2733.5,2732.1,0.0568]
[1643709763172,0.1829,2733.4,2731.8,0.01208397]
[1643709763373,0.72345223,2732.4,2731.9,0.1829]
[1643709763572,0.72345223,2732.4,2731.8,0.19498397]
[1643709763771,0.3662543,2732.9,2731.8,0.01208397]
[1643709763975,0.3662543,2732.9,2731.9,0.1829]
[1643709764174,0.6662543,2732.9,2731.9,0.1829]
[1643709764374,0.39851573,2732.4,2732.1,0.38677132]
[1643709764780,0.8219213,2732.4,2732.1,0.38677132]
[1643709765707,0.00478238,2732.9,2732.1,0.38677132]
[1643709766113,0.00478238,2732.9,2732.2,0.91488]
[1643709766309,0.1381,2733.2,2732.2,1.39778]
[1643709767213,1.16861721,2733.0,2732.7,0.33665905]
[1643709767610,0.1829,2733.4,2732.7,0.33665905]
[1643709767812,6.6534,2734.2,2732.7,0.86365905]
[1643709767813,3.69527128,2733.8,2732.7,0.86365905]
[1643709768018,3.5,2733.8,2732.8,0.1829]
[1643709768215,6.6534,2734.2,2732.9,0.527]
[1643709768418,1.3323,2734.4,2733.0,0.1829]
[1643709768615,0.39880176,2733.7,2733.3,0.41726714]
[1643709768815,0.39880176,2733.7,2733.1,0.527]
[1643709769660,0.39880176,2733.7,2732.8,1.62437]
[1643709769862,0.39880176,2733.7,2733.1,0.34001456]
[1643709770067,0.39880176,2733.7,2732.8,1.62437]
[1643709770261,0.39880176,2733.7,2732.8,0.7097]
[1643709770468,0.1829,2734.4,2732.8,0.7097]
[1643709770765,2.30233712,2734.5,2732.8,2.83874]
[1643709770766,0.19576803,2734.5,2732.8,2.83874]
[1643709771165,0.19576803,2734.5,2732.8,1.83874]
[1643709771564,0.19576803,2734.5,2733.6,0.3869669]
[1643709771565,1.13812451,2734.0,2733.6,0.3869669]
[1643709771770,0.38425102,2734.0,2733.6,0.3869669]
[1643709771963,0.38425102,2734.0,2733.1,0.527]
[1643709772569,0.1829,2734.4,2733.1,0.527]
[1643709773019,0.77226817,2734.1,2733.3,0.94760732]
[1643709773215,0.77226817,2734.1,2733.4,0.527]
[1643709773618,0.3537272,2733.8,2733.4,0.90506674]
[1643709774022,0.3537272,2733.8,2733.4,0.527]
[1643709774224,0.89679226,2733.6,2732.8,2.76323039]
[1643709774427,0.1829,2734.0,2732.9,0.527]
[1643709774627,0.1829,2734.2,2732.9,0.527]
[1643709774827,0.1829,2734.4,2732.9,0.527]
[1643709775525,0.80311779,2734.0,2732.9,0.527]
[1643709776657,0.80311779,2734.0,2733.3,0.41603286]
[1643709778065,0.80311779,2734.0,2733.4,0.82153287]
[1643709778267,0.80311779,2734.0,2733.2,0.527]
[1643709778268,0.38672214,2733.6,2733.2,0.527]
[1643709778465,0.38672214,2733.6,2732.9,0.527]
[1643709778672,0.1829,2733.9,2732.9,0.527]
[1643709779266,2.52200682,2733.9,2732.9,0.527]
[1643709779466,0.71841034,2733.4,2732.9,0.527]
[1643709779665,0.71841034,2733.4,2733.1,0.3387236]
[1643709780509,0.71841034,2733.4,2732.9,0.527]
[1643709780909,2.2991105,2733.9,2732.9,0.527]
[1643709781108,1.1829,2734.0,2732.9,0.527]
[1643709781109,0.1829,2733.8,2732.9,0.527]
[1643709781310,0.1829,2733.9,2732.9,0.527]
[1643709781719,0.1829,2734.1,2733.0,0.67491148]
[1643709781912,6.5332,2734.8,2733.1,0.527]
[1643709781913,0.1829,2734.7,2733.1,0.527]
[1643709782117,0.1829,2734.7,2733.8,0.71535163]
[1643709782118,0.72651096,2734.6,2733.8,0.71535163]
[1643709782313,0.72651096,2734.6,2733.9,0.527]
[1643709782918,1.07466468,2734.6,2734.2,0.3757347]
[1643709783114,1.07466468,2734.6,2734.1,0.527]
[1643709783514,1.37466468,2734.6,2734.1,0.527]
[1643709783715,1.07466468,2734.6,2734.1,0.527]
[1643709784564,0.1827,2734.5,2734.1,0.527]
[1643709784860,0.1827,2734.5,2733.8,0.527]
[1643709784861,0.9257374,2734.1,2733.8,0.527]
[1643709785263,1.33104255,2734.1,2733.8,0.527]
[1643709785467,1.33104255,2734.1,2733.3,1.2347]
[1643709785663,1.33104255,2734.1,2733.4,0.527]
[1643709786264,0.9257374,2734.1,2733.4,0.527]
[1643709786463,1.0,2734.2,2733.4,0.527]
[1643709786665,0.1827,2734.2,2733.5,0.91449]
[1643709786864,2.35637156,2734.7,2733.5,0.91449]
[1643709787063,0.1827,2734.6,2733.4,2.3558981]
[1643709787464,0.79693334,2734.3,2734.2,0.44714214]
[1643709787763,0.79693334,2734.3,2733.4,2.3558981]
[1643709788414,2.28199884,2734.2,2733.4,2.3558981]
[1643709788614,0.79693334,2734.3,2733.4,2.3558981]
[1643709788818,0.79557869,2733.8,2733.4,2.3558981]
[1643709789215,0.79557869,2733.8,2733.4,0.527]
[1643709789415,2.48950842,2734.3,2733.4,0.527]
[1643709789716,0.1827,2734.3,2733.4,0.527]
[1643709789918,2.48233493,2734.3,2733.4,0.527]
[1643709790116,2.48376765,2734.3,2733.4,0.527]
[1643709790317,2.48914533,2734.3,2733.4,0.527]
[1643709790522,0.1827,2734.3,2733.7,0.33165639]
[1643709790921,0.1827,2734.4,2733.7,0.33165639]
[1643709791122,0.19487279,2734.4,2733.2,4.93618008]
[1643709791760,0.19487279,2734.4,2733.2,3.6577773]
[1643709791761,0.89125212,2733.8,2733.2,3.6577773]
[1643709791961,0.89125212,2733.8,2732.9,4.61979]
[1643709792167,1.30855452,2733.8,2733.4,0.37656718]
[1643709792366,0.89125212,2733.8,2733.4,0.37656718]
[1643709792968,0.1829,2734.2,2733.4,0.37656718]
[1643709793369,0.1829,2734.2,2733.1,0.9146531]
[1643709793869,0.18695485,2734.2,2733.1,0.9146531]
[1643709794067,0.18695485,2734.2,2732.8,3.27005]
[1643709794068,1.18695484,2734.2,2732.8,0.527]
[1643709794269,1.18695484,2734.2,2732.3,0.67630667]
[1643709794270,0.9112722,2733.0,2732.3,0.67630667]
[1643709794467,2.4036158,2733.6,2732.6,0.44757412]
[1643709794670,0.1829,2733.6,2732.6,0.44757412]
[1643709794871,0.1131944,2733.5,2732.6,0.44757412]
[1643709795068,0.1829,2733.6,2732.6,0.44757412]
[1643709795268,0.1829,2733.6,2732.1,1.45487853]
[1643709795518,2.4036158,2733.6,2732.1,0.53999493]
[1643709795724,3.66601407,2733.6,2731.8,1.22723364]
[1643709796021,4.26601407,2733.6,2731.9,0.527]
[1643709796219,1.1141433,2732.7,2732.3,0.44888939]
[1643709796417,0.6796338,2732.7,2732.3,0.44888939]
[1643709797218,1.0,2733.3,2732.3,0.44888939]
[1643709797417,0.38641084,2733.0,2732.3,0.44888939]
[1643709798018,0.38641084,2733.0,2732.0,1.8298446]
[1643709798219,0.38641084,2733.0,2731.5,0.13819997]
[1643709798220,2.31097172,2732.9,2731.5,0.13819997]
[1643709798424,2.81290355,2732.9,2731.5,0.13819997]
[1643709798619,1.20193183,2732.9,2731.5,0.13819997]
[1643709798821,0.01903183,2732.9,2731.5,0.13819997]
[1643709799019,0.01903183,2732.9,2732.2,0.36993108]